fUST/lending_fUST_20250408
["ID","MTS","AMOUNT","RATE_DAILY","PERIOD"]
[357517515,1744113040291,-569.986,0.00031171,2]
[357517517,1744113040301,-4921.07977548,0.00031171,2]
[357517519,1744113040311,-569.986,0.00031171,2]
[357517520,1744113040322,-4921.07977548,0.00031171,2]
[357517521,1744113040331,-569.986,0.00031171,2]
[357517522,1744113040341,-4921.07977548,0.00031171,2]
[357517523,1744113040351,-569.986,0.00031171,2]
[357517524,1744113040361,-569.986,0.00031171,2]
[357517525,1744113040371,-569.986,0.00031171,2]
[357517526,1744113040381,-569.986,0.00031171,2]
[357517527,1744113040391,-4921.07977548,0.00031171,2]
[357517528,1744113040400,-569.986,0.00031171,2]
[357517529,1744113040410,-4921.07977548,0.00031171,2]
[357517530,1744113040420,-569.986,0.00031171,2]
[357517532,1744113040430,-4921.07977548,0.00031171,2]
[357517533,1744113040440,-4921.07977548,0.00031171,2]
[357517534,1744113040449,-4921.07977548,0.00031171,2]
[357517535,1744113040459,-4921.07977548,0.00031171,2]
[357517536,1744113040468,-4921.07977548,0.00031171,2]
[357517537,1744113040478,-4921.07977548,0.00031171,2]
[357517538,1744113040489,-4921.07977548,0.00031171,2]
[357517539,1744113040500,-569.986,0.00031171,2]
[357517540,1744113040510,-4921.07977548,0.00031171,2]
[357517541,1744113040519,-569.986,0.00031171,2]
[357517543,1744113040531,-4921.07977548,0.00031171,2]
[357517545,1744113040541,-4921.07977548,0.00031171,2]
[357517547,1744113040551,-569.986,0.00031171,2]
[357517549,1744113040560,-4921.07977548,0.00031171,2]
[357517551,1744113040572,-569.986,0.00031171,2]
[357517553,1744113040583,-4921.07977548,0.00031171,2]
[357517556,1744113040592,-569.986,0.00031171,2]
[357517558,1744113040602,-4921.07977548,0.00031171,2]
[357517560,1744113040611,-569.986,0.00031171,2]
[357517562,1744113040620,-4921.07977548,0.00031171,2]
[357517564,1744113040629,-561.84334286,0.00031171,2]
[357517566,1744113040639,-561.84334286,0.00031171,2]
[357517568,1744113040648,-561.84334286,0.00031171,2]
[357517570,1744113040657,-561.84334286,0.00031171,2]
[357517572,1744113040666,-561.84334286,0.00031171,2]
[357517574,1744113040676,-561.84334286,0.00031171,2]
[357517576,1744113040685,-561.84334286,0.00031171,2]
[357517578,1744113040694,-561.84334286,0.00031171,2]
[357517580,1744113040703,-561.84334286,0.00031171,2]
[357517582,1744113040712,-561.84334286,0.00031171,2]
[357517584,1744113040722,-561.84334286,0.00031171,2]
[357517586,1744113040732,-561.84334286,0.00031171,2]
[357517588,1744113040741,-561.84334286,0.00031171,2]
[357517590,1744113040751,-561.84334286,0.00031171,2]
[357517592,1744113040760,-561.84334286,0.00031171,2]
[357517594,1744113040771,-561.84334286,0.00031171,2]
[357517595,1744113040783,-561.84334286,0.00031171,2]
[357517596,1744113040792,-561.84334286,0.00031171,2]
[357517597,1744113040801,-561.84334286,0.00031171,2]
[357517598,1744113040811,-561.84334286,0.00031171,2]
[357517599,1744113040821,-4769.66193623,0.00031171,2]
[357517600,1744113040831,-4769.66193623,0.00031171,2]
[357517601,1744113040840,-4769.66193623,0.00031171,2]
[357517602,1744113040850,-4769.66193623,0.00031171,2]
[357517603,1744113040860,-4769.66193623,0.00031171,2]
[357517604,1744113040869,-4769.66193623,0.00031171,2]
[357517605,1744113040879,-4769.66193623,0.00031171,2]
[357517606,1744113040888,-4769.66193623,0.00031171,2]
[357517607,1744113040897,-4769.66193623,0.00031171,2]
[357517608,1744113040907,-4769.66193623,0.00031171,2]
[357517609,1744113040918,-4769.66193623,0.00031171,2]
[357517610,1744113040927,-4769.66193623,0.00031171,2]
[357517611,1744113040937,-4769.66193623,0.00031171,2]
[357517612,1744113040947,-4769.66193623,0.00031171,2]
[357517613,1744113040956,-4769.66193623,0.00031171,2]
[357517614,1744113040966,-4769.66193623,0.00031171,2]
[357517615,1744113040976,-4769.66193623,0.00031171,2]
[357517616,1744113040985,-4769.66193623,0.00031171,2]
[357517617,1744113040994,-4769.66193623,0.00031171,2]
[357517618,1744113041004,-4769.66193623,0.00031171,2]
[357517619,1744113041014,-4769.66193623,0.00031171,2]
[357517620,1744113041025,-4769.66193623,0.00031171,2]
[357517621,1744113041034,-4769.66193623,0.00031171,2]
[357517622,1744113041044,-4769.66193623,0.00031171,2]
[357517623,1744113041053,-2581.31205643,0.00031171,2]
[357517624,1744113041099,-2188.3498798,0.00031171,2]
[357517625,1744113041109,-4769.66193623,0.00031171,2]
[357517626,1744113041118,-561.8433428,0.00031171,2]
[357517627,1744113041128,-504.38570631,0.00031173,5]
[357517628,1744113041137,-500.0,0.00031173,5]
[357517629,1744113041146,-500.0,0.00031173,5]
[357517630,1744113041156,-500.0,0.00031173,5]
[357517631,1744113041165,-503.74555423,0.00031173,2]
[357517632,1744113041175,-500.0,0.00031173,5]
[357517633,1744113041184,-500.99111064,0.00031173,5]
[357517634,1744113041194,-500.0,0.00031173,5]
[357517635,1744113041203,-501.61760922,0.00031173,5]
[357517636,1744113041213,-500.0,0.00031173,5]
[357517637,1744113041223,-500.0,0.00031173,5]
[357517638,1744113041232,-500.0,0.00031173,5]
[357517639,1744113041241,-500.0,0.00031173,2]
[357517640,1744113041251,-500.0,0.00031208,2]
[357517641,1744113041260,-196.5,0.00031209,2]
[357517642,1744113041270,-151.0,0.0003121,7]
[357517643,1744113041280,-151.0,0.0003121,7]
[357517644,1744113041290,-151.0,0.0003122,7]
[357517645,1744113041299,-151.0,0.0003122,7]
[357517646,1744113041309,-202.65539935,0.00031222,2]
[357517647,1744113041319,-151.0,0.000316,14]
[357517648,1744113041328,-4664.68453315,0.00031762,10]
[357517649,1744113041337,-501.0769695,0.00031873,5]
[357517650,1744113041347,-151.0,0.000319,19]
[357517651,1744113041357,-500.0,0.00031973,5]
[357517652,1744113041366,-500.0,0.00031973,5]
[357517653,1744113041375,-500.0,0.00031973,5]
[357517654,1744113041385,-500.0,0.00031973,5]
[357517655,1744113041394,-500.0,0.00031973,5]
[357517656,1744113041406,-395.88795877,0.00031973,5]
[357517657,1744113041418,-104.11204123,0.00031973,5]
[357517658,1744113041427,-500.0,0.00031973,5]
[357517659,1744113041437,-208.43795877,0.00032,14]
[357517660,1744113041449,-3786.79282813,0.00032,14]
[357517677,1744113043505,-315.43009944,0.00031036,2]
[357517678,1744113043515,-12748.26011198,0.00032,14]
[357517679,1744113043526,-1208.81175168,0.00032022,2]
[357517680,1744113043537,-420.0,0.00032105,2]
[357517681,1744113043547,-151.0,0.000323,11]
[357517682,1744113043557,-176.17876369,0.00032507,2]
[357517683,1744113043568,-3905.69415013,0.00032517,4]
[357517684,1744113043577,-4131.2,0.00032522,3]
[357517685,1744113043587,-2065.6,0.00032522,3]
[357517686,1744113043596,-1032.8,0.00032522,3]
[357517687,1744113043606,-516.4,0.00032522,3]
[357517688,1744113043615,-8262.4,0.00032532,3]
[357517689,1744113043624,-611.9964864,0.00032533,3]
[357517693,1744113043739,-419.46366559,0.00032533,3]
[357517696,1744113043749,-10072.3281514,0.00032534,3]
[357517699,1744113043761,-2458.53748241,0.00032534,3]
[357517701,1744113043770,-207.4,0.00032536,2]
[357517703,1744113043781,-151.0,0.000327,15]
[357517704,1744113043791,-1208.81175168,0.00032981,2]
[357517706,1744113043800,-151.0,0.000331,19]
[357517708,1744113043810,-151.0,0.000335,17]
[357517710,1744113043820,-4664.68453315,0.00033624,11]
[357517712,1744113043829,-151.0,0.000339,20]
[357517714,1744113043839,-215.0738,0.00033905,2]
[357517716,1744113043848,-1208.81175168,0.00033941,2]
[357517718,1744113043858,-151.0,0.000342,11]
[357517720,1744113043867,-414.50904082,0.00034361,5]
[357517722,1744113043876,-500.0,0.00034361,2]
[357517724,1744113043886,-151.0,0.000346,10]
[357517726,1744113043895,-293.0,0.0003461,2]
[357517728,1744113043904,-1208.81175168,0.000349,2]
[357517730,1744113043914,-428.4457084,0.00034973,5]
[357517732,1744113043924,-500.0,0.00034973,5]
[357517734,1744113043933,-500.0,0.00034973,5]
[357517736,1744113043943,-500.0,0.00034973,5]
[357517738,1744113043952,-500.0,0.00034973,5]
[357517740,1744113043962,-500.0,0.00034973,5]
[357517742,1744113043974,-260.01384661,0.00034973,5]
[357517744,1744113043983,-500.0,0.00034973,5]
[357517746,1744113043993,-500.0,0.00034973,5]
[357517748,1744113044003,-500.0,0.00034973,5]
[357517750,1744113044012,-567.89133044,0.00034973,2]
[357517752,1744113044022,-500.0,0.00034973,5]
[357517754,1744113044032,-500.0,0.00034973,5]
[357517756,1744113044041,-512.52789917,0.00034973,5]
[357517758,1744113044051,-500.0,0.00034973,5]
[357517760,1744113044060,-357.30028375,0.00034973,5]
[357517762,1744113044069,-502.09534863,0.00034973,5]
[357517764,1744113044079,-500.0,0.00034973,5]
[357517766,1744113044088,-394.78976241,0.00034973,5]
[357517768,1744113044097,-500.0,0.00034973,5]
[357517770,1744113044107,-500.0,0.00034973,5]
[357517772,1744113044116,-389.86942769,0.00034973,5]
[357517775,1744113044126,-500.0,0.00034973,5]
[357517777,1744113044136,-402.35240842,0.00034973,5]
[357517779,1744113044145,-602.59666098,0.00034973,5]
[357517781,1744113044154,-500.0,0.00034973,5]
[357517783,1744113044163,-500.0,0.00034973,5]
[357517785,1744113044173,-500.0,0.00034973,5]
[357517787,1744113044182,-500.0,0.00034973,5]
[357517789,1744113044192,-500.0,0.00034973,5]
[357517791,1744113044201,-500.0,0.00034973,5]
[357517793,1744113044210,-500.0,0.00034973,5]
[357517795,1744113044220,-500.0,0.00034973,5]
[357517797,1744113044230,-500.0,0.00034973,5]
[357517799,1744113044239,-500.0,0.00034973,5]
[357517801,1744113044249,-500.0,0.00034973,5]
[357517803,1744113044259,-562.41153938,0.00034973,5]
[357517805,1744113044269,-500.0,0.00034973,5]
[357517807,1744113044279,-500.0,0.00034973,5]
[357517809,1744113044288,-500.0,0.00034973,5]
[357517811,1744113044297,-500.0,0.00034973,5]
[357517813,1744113044307,-352.35752738,0.00034978,2]
[357517815,1744113044316,-62748.0999367,0.00034988,2]
[357517817,1744113044326,-154.105043,0.00034988,14]
[357517819,1744113044335,-153.107536,0.00034988,14]
[357517821,1744113044345,-151.0,0.00034988,14]
[357517823,1744113044354,-157.083683,0.00034988,14]
[357517825,1744113044364,-151.0,0.00034988,14]
[357517827,1744113044374,-151.0,0.00034988,14]
[357517829,1744113044383,-880.89381845,0.0003499,2]
[357517831,1744113044393,-160.0,0.00034999,10]
[357517833,1744113044402,-15079.29211069,0.00035,3]
[357517835,1744113044412,-263900.1314706,0.00035,5]
[357517837,1744113044421,-37221.10132708,0.00035,30]
[357517839,1744113044430,-151.0,0.00035,14]
[357517841,1744113044440,-151.0,0.00035,14]
[357517843,1744113044449,-152.114782,0.00035,14]
[357517845,1744113044458,-270.691803,0.00035,14]
[357517847,1744113044468,-151.0,0.00035,14]
[357517849,1744113044478,-151.0,0.00035,14]
[357517851,1744113044487,-151.0,0.00035,14]
[357517853,1744113044501,-151.0,0.00035,14]
[357517855,1744113044510,-151.0,0.00035,14]
[357517857,1744113044519,-151.559134,0.00035,14]
[357517859,1744113044530,-151.0,0.00035,14]
[357517861,1744113044541,-151.0,0.00035,2]
[357517863,1744113044551,-151.0,0.00035,14]
[357517866,1744113044561,-205.220563,0.00035,14]
[357517868,1744113044571,-205.220563,0.00035,14]
[357517870,1744113044582,-151.0,0.00035,14]
[357517872,1744113044591,-151.0,0.00035,14]
[357517873,1744113044601,-151.0,0.00035,14]
[357517875,1744113044610,-151.0,0.00035,14]
[357517877,1744113044619,-152.098419,0.00035,14]
[357517879,1744113044629,-151.0,0.00035,14]
[357517881,1744113044639,-152.922956,0.00035,14]
[357517883,1744113044648,-151.0,0.00035,14]
[357517885,1744113044658,-151.0,0.00035,14]
[357517887,1744113044668,-151.0,0.00035,14]
[357517889,1744113044678,-151.0,0.00035,14]
[357517891,1744113044687,-240.154266,0.00035,14]
[357517893,1744113044696,-1760.698992,0.00035,2]
[357517895,1744113044705,-1760.698992,0.00035,2]
[357517897,1744113044715,-151.0,0.00035,14]
[357517899,1744113044724,-169.507495,0.00035,14]
[357517901,1744113044734,-169.507495,0.00035,14]
[357517903,1744113044743,-151.0,0.00035,14]
[357517905,1744113044753,-151.0,0.00035,14]
[357517907,1744113044763,-1000.0,0.00035252,5]
[357517909,1744113044772,-1000.0,0.00035252,5]
[357517911,1744113044783,-1094.51586416,0.00035252,5]
[357517913,1744113044792,-223.0315306,0.00035274,2]
[357517915,1744113044802,-4664.68453315,0.00035486,12]
[357517917,1744113044813,-749.1585,0.00035608,30]
[357517919,1744113044823,-210.66623015,0.00035616,120]
[357517921,1744113044832,-500.0,0.00035673,5]
[357517923,1744113044842,-500.0,0.00035673,5]
[357517925,1744113044852,-160.0,0.00035699,10]
[357517927,1744113044861,-160.0,0.000357,3]
[357517929,1744113044871,-53593.00731754,0.000357,2]
[357517931,1744113044880,-239962.85,0.000357,30]
[357517933,1744113044890,-838.97,0.000357,7]
[357517935,1744113044900,-151.765904,0.000357,14]
[357517937,1744113044909,-151.0,0.000357,14]
[357517939,1744113044919,-151.0,0.000357,14]
[357517941,1744113044928,-151.0,0.000357,14]
[357517943,1744113044937,-152.049168,0.000357,14]
[357517945,1744113044947,-151.0,0.000357,14]
[357517947,1744113044956,-151.0,0.000357,14]
[357517949,1744113044966,-155.698266,0.000357,14]
[357517951,1744113044975,-151.0,0.000357,14]
[357517953,1744113044984,-151.0,0.000357,14]
[357517955,1744113044993,-151.0,0.000357,14]
[357517957,1744113045003,-151.0,0.000357,14]
[357517959,1744113045012,-153.456855,0.000357,14]
[357517961,1744113045022,-151.0,0.000357,14]
[357517963,1744113045031,-151.0,0.000357,2]
[357517965,1744113045040,-151.0,0.000357,14]
[357517967,1744113045050,-205.220563,0.000357,14]
[357517969,1744113045060,-205.220563,0.000357,14]
[357517971,1744113045070,-151.0,0.000357,14]
[357517973,1744113045080,-151.0,0.000357,14]
[357517975,1744113045090,-151.665243,0.000357,14]
[357517977,1744113045099,-151.0,0.000357,14]
[357517979,1744113045108,-206.835224,0.000357,14]
[357517981,1744113045118,-151.0,0.000357,14]
[357517983,1744113045127,-151.0,0.000357,14]
[357517985,1744113045137,-151.383446,0.000357,14]
[357517987,1744113045146,-151.0,0.000357,14]
[357517989,1744113045156,-151.0,0.000357,14]
[357517991,1744113045166,-1760.698992,0.000357,2]
[357517993,1744113045175,-1760.698992,0.000357,2]
[357517995,1744113045184,-151.0,0.000357,14]
[357517997,1744113045194,-169.507495,0.000357,14]
[357517999,1744113045204,-169.507495,0.000357,14]
[357518001,1744113045214,-151.0,0.000357,14]
[357518003,1744113045223,-151.0,0.000358,14]
[357518005,1744113045232,-151.0,0.000358,14]
[357518007,1744113045242,-355.591093,0.0003589,2]
[357518009,1744113045251,-322.31,0.00036,2]
[357518011,1744113045260,-179.9820018,0.00036061,15]
[357518013,1744113045270,-231.28369723,0.00036643,2]
[357518015,1744113045280,-500.0,0.00036652,5]
[357518017,1744113045289,-1000.0,0.00036652,5]
[357518019,1744113045299,-500.0,0.00036652,5]
[357518021,1744113045308,-1000.0,0.00036652,5]
[357518023,1744113045318,-1000.0,0.00036652,5]
[357518025,1744113045327,-500.0,0.00036652,5]
[357518027,1744113045336,-4664.68453315,0.00037348,13]
[357518029,1744113045346,-500.0,0.00037452,5]
[357518031,1744113045355,-500.0,0.00037452,5]
[357518033,1744113045364,-1000.0,0.00037452,5]
[357518035,1744113045373,-500.0,0.00037452,5]
[357518037,1744113045383,-208.0,0.00038,2]
[357518039,1744113045392,-239.84119403,0.00038012,2]
[357518041,1744113045401,-2189.08989982,0.00038197,2]
[357518043,1744113045411,-161.756,0.00038305,51]
[357518045,1744113045420,-400.78814491,0.00038356,60]
[357518047,1744113045429,-375.11,0.000388,120]
[357518049,1744113045438,-201.0,0.0003899,53]
[357518051,1744113045448,-4664.68453315,0.0003921,15]
[357518053,1744113045457,-868.5,0.000393,30]
[357518055,1744113045467,-2624.02,0.000393,30]
[357518057,1744113045477,-2999.86,0.000393,30]
[357518059,1744113045488,-465.17663358,0.00039381,2]
[357518061,1744113045502,-11571.44460863,0.0003951,2]
[357518063,1744113045512,-887.52808884,0.00039521,2]
[357518065,1744113045522,-2000.0,0.00039615,4]
[357518067,1744113045534,-2000.0,0.0003968,4]
[357518069,1744113045543,-2000.0,0.00039744,4]
[357518071,1744113045552,-151.31926941,0.00039773,5]
[357518073,1744113045562,-500.0,0.00039773,5]
[357518075,1744113045573,-160.0,0.00039799,30]
[357518077,1744113045582,-152.61,0.000398,31]
[357518079,1744113045593,-152.61,0.000398,31]
[357518081,1744113045603,-152.61,0.000398,31]
[357518083,1744113045613,-152.61,0.000398,31]
[357518085,1744113045622,-152.61,0.000398,31]
[357518087,1744113045632,-152.61,0.000398,31]
[357518089,1744113045642,-152.61,0.000398,31]
[357518091,1744113045651,-152.61,0.000398,31]
[357518094,1744113045662,-322503.31771749,0.000398,120]
[357518096,1744113045677,-848.0000016,0.000398,120]
[357518249,1744113046710,-624.0,0.00035938,30]
[357518251,1744113046721,-1010.46481128,0.000398,120]
[357518253,1744113046733,-1625.6081,0.000398,120]
[357518255,1744113046745,-246125.56798453,0.000398,120]
[357519275,1744113935100,-407.3607356,0.00025,2]
[357519276,1744113964660,-200.0,0.00025,2]
[357519277,1744113996088,-97.93165148,0.00025,2]
[357519278,1744113996109,-297.0,0.00028,8]
[357519279,1744113996132,-56.40248252,0.00028187,2]
[357519280,1744114037119,-768.46637839,0.00028187,2]
[357519281,1744114052084,-510.53718979,0.00028187,2]
[357519301,1744114233124,-413.645,0.00028187,2]
[357519302,1744114233139,-408.64313899,0.00028187,2]
[357519303,1744114233150,-4944.8980337,0.00028223,2]
[357519304,1744114233161,-300.0,0.00029007,2]
[357519305,1744114233171,-24900.0,0.00029008,2]
[357519306,1744114233181,-1641.8174249,0.00029034,2]
[357519307,1744114233191,-274.057686,0.00029134,2]
[357519308,1744114233201,-183.576577,0.0002954,2]
[357519309,1744114233211,-363.48131778,0.00029782,2]
[357519310,1744114233223,-636.51868222,0.00029782,2]
[357519311,1744114233234,-3746.25774077,0.000299,8]
[357519312,1744114233245,-1000.0,0.00030013,2]
[357519313,1744114233255,-1000.0,0.00030013,2]
[357519314,1744114233265,-16178.26082692,0.00030813,2]
[357519315,1744114233357,-1419.49748092,0.00030813,2]
[357519316,1744114233369,-3490.28896964,0.00030813,2]
[357519317,1744114233378,-556.34993471,0.00031,2]
[357519318,1744114233390,-298.405004,0.00031,2]
[357519351,1744114238651,-2347.07506129,0.00031,2]
[357519352,1744114238661,-837.41003169,0.00031009,2]
[357519353,1744114238670,-419.18755876,0.0003101,2]
[357519354,1744114238680,-152.0,0.00031018,2]
[357519355,1744114238689,-583.71659922,0.00031034,2]
[357519356,1744114238699,-1000.0,0.00031056,2]
[357519357,1744114238708,-1219.28,0.00031113,3]
[357519358,1744114238717,-1016.06,0.00031113,3]
[357519359,1744114238727,-609.67,0.00031113,3]
[357519360,1744114238737,-151.0,0.00031117,2]
[357519361,1744114238747,-500.0,0.00031122,2]
[357519362,1744114238756,-239.93522818,0.00031122,2]
[357519363,1744114238766,-388.52403395,0.00031122,2]
[357519364,1744114238776,-500.0,0.00031122,2]
[357519365,1744114238785,-500.0,0.00031122,2]
[357519366,1744114238795,-500.0,0.00031122,2]
[357519367,1744114238804,-500.0,0.00031122,2]
[357519368,1744114238814,-500.0,0.00031122,2]
[357519369,1744114238826,-500.0,0.00031122,2]
[357519370,1744114238840,-500.0,0.00031122,2]
[357519372,1744114238850,-500.0,0.00031122,2]
[357519373,1744114238860,-500.0,0.00031122,2]
[357519374,1744114238870,-500.0,0.00031122,2]
[357519375,1744114238881,-500.0,0.00031122,2]
[357519376,1744114238890,-500.0,0.00031122,2]
[357519378,1744114238900,-500.0,0.00031122,2]
[357519380,1744114238911,-500.0,0.00031122,2]
[357519382,1744114238921,-500.0,0.00031122,2]
[357519383,1744114238930,-500.0,0.00031122,2]
[357519384,1744114238940,-500.0,0.00031122,2]
[357519385,1744114238949,-500.0,0.00031122,2]
[357519386,1744114238958,-644.16431677,0.00031122,2]
[357519387,1744114238968,-500.0,0.00031122,2]
[357519388,1744114238978,-500.0,0.00031122,2]
[357519389,1744114238989,-500.0,0.00031122,2]
[357519390,1744114239000,-500.0,0.00031122,2]
[357519391,1744114239009,-500.0,0.00031122,2]
[357519392,1744114239019,-500.0,0.00031122,2]
[357519393,1744114239029,-500.0,0.00031122,2]
[357519394,1744114239038,-500.0,0.00031122,2]
[357519395,1744114239048,-500.0,0.00031122,2]
[357519396,1744114239057,-500.0,0.00031122,2]
[357519397,1744114239067,-500.0,0.00031122,2]
[357519398,1744114239077,-500.0,0.00031122,2]
[357519399,1744114239087,-288.03731186,0.00031122,2]
[357519400,1744114239096,-500.0,0.00031122,2]
[357519401,1744114239106,-500.0,0.00031122,2]
[357519402,1744114239115,-500.0,0.00031122,2]
[357519403,1744114239126,-500.0,0.00031122,2]
[357519404,1744114239135,-500.0,0.00031122,2]
[357519405,1744114239145,-500.0,0.00031122,2]
[357519406,1744114239155,-500.0,0.00031122,2]
[357519407,1744114239167,-500.0,0.00031122,2]
[357519408,1744114239177,-500.0,0.00031122,2]
[357519409,1744114239187,-500.0,0.00031122,2]
[357519410,1744114239196,-500.0,0.00031122,2]
[357519411,1744114239207,-500.0,0.00031122,2]
[357519412,1744114239217,-500.0,0.00031122,2]
[357519413,1744114239227,-500.0,0.00031122,2]
[357519414,1744114239236,-500.0,0.00031122,2]
[357519415,1744114239248,-500.0,0.00031122,2]
[357519416,1744114239261,-500.0,0.00031122,2]
[357519417,1744114239274,-500.0,0.00031122,2]
[357519418,1744114239293,-500.0,0.00031122,2]
[357519419,1744114239306,-500.0,0.00031122,2]
[357519420,1744114239316,-500.0,0.00031122,2]
[357519421,1744114239327,-514.9695032,0.00031122,2]
[357519422,1744114239336,-500.0,0.00031122,2]
[357519423,1744114239345,-500.0,0.00031122,2]
[357519424,1744114239355,-500.0,0.00031122,2]
[357519425,1744114239365,-500.0,0.00031122,2]
[357519426,1744114239374,-500.0,0.00031122,2]
[357519427,1744114239383,-500.0,0.00031122,2]
[357519428,1744114239393,-500.0,0.00031122,2]
[357519429,1744114239402,-500.0,0.00031122,2]
[357519430,1744114239412,-500.0,0.00031122,2]
[357519431,1744114239422,-500.0,0.00031122,2]
[357519432,1744114239432,-500.0,0.00031122,2]
[357519433,1744114239442,-500.0,0.00031122,2]
[357519434,1744114239452,-500.0,0.00031122,2]
[357519435,1744114239462,-500.0,0.00031122,2]
[357519436,1744114239472,-500.0,0.00031122,2]
[357519437,1744114239481,-500.0,0.00031122,2]
[357519438,1744114239491,-500.0,0.00031122,2]
[357519439,1744114239501,-500.0,0.00031122,2]
[357519440,1744114239511,-500.0,0.00031122,2]
[357519441,1744114239520,-500.0,0.00031122,2]
[357519442,1744114239531,-500.0,0.00031122,2]
[357519443,1744114239540,-500.0,0.00031122,2]
[357519444,1744114239550,-500.0,0.00031122,2]
[357519445,1744114239560,-70.36346863,0.00031122,2]
[357519446,1744114239574,-429.63653137,0.00031122,2]
[357519447,1744114239584,-500.0,0.00031122,2]
[357519448,1744114239593,-500.0,0.00031122,2]
[357519449,1744114239603,-500.0,0.00031122,2]
[357519450,1744114239612,-500.0,0.00031122,2]
[357519451,1744114239621,-500.0,0.00031122,2]
[357519452,1744114239631,-500.0,0.00031122,2]
[357519453,1744114239640,-500.0,0.00031122,2]
[357519454,1744114239650,-500.0,0.00031122,2]
[357519455,1744114239659,-500.0,0.00031122,2]
[357519456,1744114239669,-616.6390621,0.00031122,2]
[357519457,1744114239678,-500.0,0.00031122,2]
[357519458,1744114239687,-500.0,0.00031122,2]
[357519459,1744114239697,-500.0,0.00031122,2]
[357519460,1744114239706,-500.0,0.00031122,2]
[357519461,1744114239715,-500.0,0.00031122,2]
[357519462,1744114239725,-500.0,0.00031122,2]
[357519463,1744114239734,-500.0,0.00031122,2]
[357519464,1744114239743,-500.0,0.00031122,2]
[357519465,1744114239752,-500.0,0.00031122,2]
[357519466,1744114239762,-500.0,0.00031122,2]
[357519467,1744114239771,-500.0,0.00031122,2]
[357519468,1744114239780,-500.0,0.00031122,2]
[357519469,1744114239790,-500.0,0.00031122,2]
[357519470,1744114239799,-500.0,0.00031122,2]
[357519471,1744114239809,-500.0,0.00031122,2]
[357519472,1744114239819,-500.0,0.00031122,2]
[357519473,1744114239829,-500.0,0.00031122,2]
[357519474,1744114239839,-500.0,0.00031122,2]
[357519475,1744114239852,-500.0,0.00031122,2]
[357519476,1744114239863,-500.0,0.00031122,2]
[357519477,1744114239872,-500.0,0.00031122,2]
[357519478,1744114239883,-500.0,0.00031122,2]
[357519479,1744114239893,-500.0,0.00031122,2]
[357519480,1744114239902,-500.0,0.00031122,2]
[357519481,1744114239911,-500.0,0.00031122,2]
[357519482,1744114239922,-500.0,0.00031122,2]
[357519483,1744114239932,-500.0,0.00031122,2]
[357519484,1744114239941,-500.0,0.00031122,2]
[357519485,1744114239950,-500.0,0.00031122,2]
[357519486,1744114239959,-500.0,0.00031122,2]
[357519487,1744114239968,-500.0,0.00031122,2]
[357519488,1744114239978,-500.0,0.00031122,2]
[357519489,1744114239987,-500.0,0.00031122,2]
[357519490,1744114239996,-500.0,0.00031122,2]
[357519491,1744114240006,-80651.72710347,0.00031124,2]
[357519492,1744114240023,-381204.49631753,0.00031124,2]
[357519493,1744114240032,-1606.75032496,0.00031124,2]
[357519494,1744114240041,-1463.13,0.00031124,3]
[357519495,1744114240052,-500.0,0.00031134,2]